[Event "Late-Titled-Tuesday-Blitz-February-13-2024"]
[Site "Chess.com"]
[Date "2024.02.13"]
[Round "10"]
[White "BeardedNM"]
[Black "rikchessmx"]
[Result "1-0"]
[WhiteElo "2164"]
[BlackElo "2283"]
[TimeControl "180+1"]
[EndTime "15:52:14 PST"]
[Termination "BeardedNM won by checkmate"]

1. e4 {[%clk 0:03:00.9]} 1... c5 {[%clk 0:02:59.4]} 2. Nf3 {[%clk 0:03:01]} 2...
e6 {[%clk 0:03:00.3]} 3. d4 {[%clk 0:03:01.4]} 3... cxd4 {[%clk 0:03:01]} 4.
Nxd4 {[%clk 0:03:02.3]} 4... a6 {[%clk 0:03:01.3]} 5. Bd3 {[%clk 0:03:02.1]}
5... Qc7 {[%clk 0:03:01.6]} 6. Qe2 {[%clk 0:03:01.5]} 6... Nf6 {[%clk
0:03:01.9]} 7. Nc3 {[%clk 0:02:57.5]} 7... h5 {[%clk 0:03:01.2]} 8. e5 {[%clk
0:02:55]} 8... Ng4 {[%clk 0:03:00.9]} 9. Bf4 {[%clk 0:02:47.6]} 9... d6 {[%clk
0:03:00.6]} 10. exd6 {[%clk 0:02:42.8]} 10... Bxd6 {[%clk 0:03:00.1]} 11. Bxd6
{[%clk 0:02:43]} 11... Qxd6 {[%clk 0:02:59.8]} 12. O-O-O {[%clk 0:02:42]} 12...
Qf4+ {[%clk 0:02:55.7]} 13. Kb1 {[%clk 0:02:39.2]} 13... Qxf2 {[%clk 0:02:48.4]}
14. Qe4 {[%clk 0:02:16.4]} 14... Nf6 {[%clk 0:02:41.9]} 15. Qe5 {[%clk
0:02:13.6]} 15... Nbd7 {[%clk 0:02:38.2]} 16. Qd6 {[%clk 0:02:04.2]} 16... Qe3
{[%clk 0:02:00.5]} 17. Rhe1 {[%clk 0:01:56.1]} 17... Qg5 {[%clk 0:02:00.1]} 18.
h4 {[%clk 0:00:48.2]} 18... Qc5 {[%clk 0:01:53.1]} 19. Rxe6+ {[%clk 0:00:38]}
19... fxe6 {[%clk 0:01:49.6]} 20. Bg6+ {[%clk 0:00:37.7]} 20... Kd8 {[%clk
0:01:45.9]} 21. Nxe6# {[%clk 0:00:37.7]} 1-0

[Event "Late-Titled-Tuesday-Blitz-February-13-2024"]
[Site "Chess.com"]
[Date "2024.02.13"]
[Round "10"]
[White "gunslinger222"]
[Black "terrortoast"]
[Result "0-1"]
[WhiteElo "2272"]
[BlackElo "2478"]
[TimeControl "180+1"]
[EndTime "15:52:15 PST"]
[Termination "terrortoast won by resignation"]

1. d4 {[%clk 0:03:00.4]} 1... Nf6 {[%clk 0:02:41]} 2. Bg5 {[%clk 0:02:59.8]}
2... d5 {[%clk 0:02:39.5]} 3. Nf3 {[%clk 0:02:58.8]} 3... Ne4 {[%clk 0:02:38.6]}
4. Bf4 {[%clk 0:02:58.3]} 4... c5 {[%clk 0:02:35.4]} 5. Nbd2 {[%clk 0:02:52.9]}
5... Nc6 {[%clk 0:02:29.3]} 6. dxc5 {[%clk 0:02:49.8]} 6... Qa5 {[%clk 0:02:26]}
7. e3 {[%clk 0:02:44.6]} 7... Bg4 {[%clk 0:02:21.8]} 8. Be2 {[%clk 0:02:43.2]}
8... e6 {[%clk 0:02:20.1]} 9. O-O {[%clk 0:02:40.6]} 9... Nxd2 {[%clk
0:02:00.3]} 10. Nxd2 {[%clk 0:02:36.8]} 10... Bxe2 {[%clk 0:01:59.8]} 11. Qxe2
{[%clk 0:02:37.7]} 11... Bxc5 {[%clk 0:01:56.9]} 12. a3 {[%clk 0:02:26.4]} 12...
Be7 {[%clk 0:01:52.9]} 13. b4 {[%clk 0:02:26.2]} 13... Qb6 {[%clk 0:01:52.1]}
14. c4 {[%clk 0:02:25]} 14... O-O {[%clk 0:01:48.6]} 15. cxd5 {[%clk 0:02:18.1]}
15... exd5 {[%clk 0:01:49.5]} 16. Nb3 {[%clk 0:02:18.6]} 16... Bf6 {[%clk
0:01:34.2]} 17. Rad1 {[%clk 0:02:15.9]} 17... Rad8 {[%clk 0:01:30.7]} 18. h3
{[%clk 0:01:48.8]} 18... Rfe8 {[%clk 0:01:26.2]} 19. Qf3 {[%clk 0:01:42.3]}
19... d4 {[%clk 0:01:22.9]} 20. exd4 {[%clk 0:01:40.6]} 20... Nxd4 {[%clk
0:01:22.9]} 21. Nxd4 {[%clk 0:01:40.7]} 21... Bxd4 {[%clk 0:01:22.9]} 22. Rfe1
{[%clk 0:01:34.4]} 22... h6 {[%clk 0:01:12.1]} 23. Re7 {[%clk 0:01:27]} 23...
Rxe7 {[%clk 0:01:10.4]} 0-1

[Event "Late-Titled-Tuesday-Blitz-February-13-2024"]
[Site "Chess.com"]
[Date "2024.02.13"]
[Round "10"]
[White "LiamPutnam2008"]
[Black "Malev212"]
[Result "1-0"]
[WhiteElo "2849"]
[BlackElo "2693"]
[TimeControl "180+1"]
[EndTime "15:52:22 PST"]
[Termination "LiamPutnam2008 won by resignation"]

1. e4 {[%clk 0:03:00.9]} 1... c5 {[%clk 0:02:55]} 2. Nf3 {[%clk 0:03:00.5]} 2...
d6 {[%clk 0:02:54.5]} 3. d4 {[%clk 0:03:01]} 3... cxd4 {[%clk 0:02:54.7]} 4.
Nxd4 {[%clk 0:03:01.9]} 4... Nf6 {[%clk 0:02:54.5]} 5. Nc3 {[%clk 0:03:02.1]}
5... g6 {[%clk 0:02:54.6]} 6. Be3 {[%clk 0:03:02.2]} 6... Bg7 {[%clk 0:02:53.1]}
7. f3 {[%clk 0:03:02.7]} 7... a6 {[%clk 0:02:53]} 8. Qd2 {[%clk 0:03:00.2]} 8...
h6 {[%clk 0:02:52]} 9. O-O-O {[%clk 0:02:55.3]} 9... h5 {[%clk 0:02:52.9]} 10.
Kb1 {[%clk 0:02:42]} 10... Nbd7 {[%clk 0:02:53.8]} 11. Bc4 {[%clk 0:02:37.4]}
11... b5 {[%clk 0:02:54.7]} 12. Bb3 {[%clk 0:02:20.2]} 12... Nc5 {[%clk
0:02:50]} 13. Rhe1 {[%clk 0:01:49.9]} 13... Bd7 {[%clk 0:02:48.8]} 14. Bg5
{[%clk 0:01:42.7]} 14... b4 {[%clk 0:02:31.8]} 15. Nd5 {[%clk 0:01:41.2]} 15...
Nxb3 {[%clk 0:02:25.2]} 16. Nxb3 {[%clk 0:01:31.4]} 16... O-O {[%clk 0:01:51]}
17. Nxf6+ {[%clk 0:01:27.3]} 17... exf6 {[%clk 0:01:50]} 18. Bh6 {[%clk
0:01:21.7]} 18... Bxh6 {[%clk 0:01:38.2]} 19. Qxh6 {[%clk 0:01:22.6]} 19... a5
{[%clk 0:01:34.8]} 20. Rxd6 {[%clk 0:01:22.3]} 20... a4 {[%clk 0:01:34.4]} 21.
Nd2 {[%clk 0:01:17.4]} 21... Qe7 {[%clk 0:01:29]} 22. e5 {[%clk 0:01:17.3]}
22... Be6 {[%clk 0:01:24.6]} 23. Ne4 {[%clk 0:01:14.2]} 23... fxe5 {[%clk
0:01:23.6]} 24. Ng5 {[%clk 0:01:14.4]} 24... f6 {[%clk 0:01:20.4]} 25. Qxg6+
{[%clk 0:01:13.9]} 25... Kh8 {[%clk 0:01:19.4]} 26. Qh6+ {[%clk 0:01:14.5]}
26... Kg8 {[%clk 0:01:18.8]} 27. Rxe6 {[%clk 0:01:15.1]} 1-0

[Event "Late-Titled-Tuesday-Blitz-February-13-2024"]
[Site "Chess.com"]
[Date "2024.02.13"]
[Round "10"]
[White "The_Straightforward_Rook"]
[Black "Viktor_Poddubnyi"]
[Result "1-0"]
[WhiteElo "2438"]
[BlackElo "2277"]
[TimeControl "180+1"]
[EndTime "15:52:40 PST"]
[Termination "The_Straightforward_Rook won by resignation"]

1. Nf3 {[%clk 0:02:57.5]} 1... g6 {[%clk 0:03:00.2]} 2. d4 {[%clk 0:02:56.2]}
2... Bg7 {[%clk 0:03:00.7]} 3. e4 {[%clk 0:02:56.7]} 3... d6 {[%clk 0:03:00.6]}
4. Bd3 {[%clk 0:02:55.8]} 4... Nf6 {[%clk 0:03:00.8]} 5. O-O {[%clk 0:02:55.9]}
5... Nc6 {[%clk 0:03:01.2]} 6. Re1 {[%clk 0:02:54.1]} 6... Bg4 {[%clk
0:02:58.4]} 7. c3 {[%clk 0:02:51.9]} 7... e5 {[%clk 0:02:58.4]} 8. d5 {[%clk
0:02:51]} 8... Ne7 {[%clk 0:02:57.9]} 9. Nbd2 {[%clk 0:02:51.5]} 9... O-O {[%clk
0:02:57.2]} 10. a4 {[%clk 0:02:50.7]} 10... a5 {[%clk 0:02:54.9]} 11. h3 {[%clk
0:02:50.4]} 11... Bd7 {[%clk 0:02:50.1]} 12. Nf1 {[%clk 0:02:49.4]} 12... Nh5
{[%clk 0:02:47.5]} 13. Ng3 {[%clk 0:02:48.2]} 13... Nf4 {[%clk 0:02:25.9]} 14.
Bc2 {[%clk 0:02:43.4]} 14... h6 {[%clk 0:02:20.3]} 15. Nh2 {[%clk 0:02:30.4]}
15... h5 {[%clk 0:01:47.8]} 16. Bxf4 {[%clk 0:02:18]} 16... exf4 {[%clk
0:01:46.8]} 17. Ne2 {[%clk 0:02:18.6]} 17... Bh6 {[%clk 0:01:42.2]} 18. Nd4
{[%clk 0:02:16.2]} 18... g5 {[%clk 0:01:23.1]} 19. Qxh5 {[%clk 0:02:13.8]} 19...
Kg7 {[%clk 0:01:14.2]} 20. Nf5+ {[%clk 0:02:10.8]} 20... Bxf5 {[%clk 0:01:09.5]}
21. exf5 {[%clk 0:02:11.7]} 21... Nxd5 {[%clk 0:01:01.5]} 22. Ng4 {[%clk
0:02:04.4]} 22... Rh8 {[%clk 0:01:01.4]} 23. Bb3 {[%clk 0:01:48.5]} 23... c6
{[%clk 0:00:51.6]} 24. Bxd5 {[%clk 0:01:48]} 24... cxd5 {[%clk 0:00:50.2]} 25.
f6+ {[%clk 0:01:48.3]} 25... Kf8 {[%clk 0:00:45.8]} 26. Re7 {[%clk 0:01:45]} 1-0

[Event "Late-Titled-Tuesday-Blitz-February-13-2024"]
[Site "Chess.com"]
[Date "2024.02.13"]
[Round "10"]
[White "Hilary46"]
[Black "MusicCityMaster"]
[Result "1-0"]
[WhiteElo "2613"]
[BlackElo "2459"]
[TimeControl "180+1"]
[EndTime "15:52:46 PST"]
[Termination "Hilary46 won by resignation"]

1. Nf3 {[%clk 0:03:00.9]} 1... Nf6 {[%clk 0:02:58.8]} 2. g3 {[%clk 0:03:00.2]}
2... b5 {[%clk 0:02:57.2]} 3. Bg2 {[%clk 0:03:01.1]} 3... Bb7 {[%clk 0:02:57.6]}
4. O-O {[%clk 0:03:01.2]} 4... e6 {[%clk 0:02:56.5]} 5. b3 {[%clk 0:02:43.3]}
5... d5 {[%clk 0:02:56.1]} 6. Bb2 {[%clk 0:02:43.8]} 6... Be7 {[%clk 0:02:55.9]}
7. d3 {[%clk 0:02:36.2]} 7... O-O {[%clk 0:02:55.4]} 8. Nbd2 {[%clk 0:02:36.1]}
8... c5 {[%clk 0:02:54.7]} 9. c4 {[%clk 0:02:35.7]} 9... a6 {[%clk 0:02:46.2]}
10. cxd5 {[%clk 0:02:33.7]} 10... exd5 {[%clk 0:02:42.5]} 11. Rc1 {[%clk
0:02:27.4]} 11... Nbd7 {[%clk 0:02:41.3]} 12. Re1 {[%clk 0:02:23.6]} 12... Re8
{[%clk 0:02:38]} 13. e4 {[%clk 0:02:21.9]} 13... dxe4 {[%clk 0:02:25.9]} 14.
Nxe4 {[%clk 0:02:18.6]} 14... Rc8 {[%clk 0:02:12.5]} 15. Nfg5 {[%clk 0:02:14.1]}
15... Nxe4 {[%clk 0:02:00.5]} 16. Nxe4 {[%clk 0:02:13.6]} 16... Qb6 {[%clk
0:01:53.8]} 17. Qg4 {[%clk 0:02:02.9]} 17... Bf8 {[%clk 0:00:41.6]} 18. Qxd7
{[%clk 0:02:02.2]} 18... Bc6 {[%clk 0:00:32.9]} 19. Nf6+ {[%clk 0:01:38.3]}
19... gxf6 {[%clk 0:00:23]} 20. Qg4+ {[%clk 0:01:37.9]} 20... Bg7 {[%clk
0:00:23]} 21. Bxf6 {[%clk 0:01:38.2]} 1-0

[Event "Late-Titled-Tuesday-Blitz-February-13-2024"]
[Site "Chess.com"]
[Date "2024.02.13"]
[Round "10"]
[White "BozeKat"]
[Black "BabageldiAnnaberdiyev"]
[Result "0-1"]
[WhiteElo "2066"]
[BlackElo "2606"]
[TimeControl "180+1"]
[EndTime "15:53:01 PST"]
[Termination "BabageldiAnnaberdiyev won by checkmate"]

1. d4 {[%clk 0:03:00.9]} 1... Nf6 {[%clk 0:02:23.1]} 2. Nf3 {[%clk 0:02:59.1]}
2... g6 {[%clk 0:02:21.7]} 3. c4 {[%clk 0:02:55.7]} 3... Bg7 {[%clk 0:02:22.1]}
4. e3 {[%clk 0:02:54.5]} 4... O-O {[%clk 0:02:22.5]} 5. Be2 {[%clk 0:02:53.9]}
5... d6 {[%clk 0:02:23.4]} 6. O-O {[%clk 0:02:53.3]} 6... Nbd7 {[%clk
0:02:24.3]} 7. Qc2 {[%clk 0:02:51.3]} 7... e5 {[%clk 0:02:25.2]} 8. Rd1 {[%clk
0:02:50.6]} 8... e4 {[%clk 0:02:24.3]} 9. Nfd2 {[%clk 0:02:50.6]} 9... Re8
{[%clk 0:02:24.5]} 10. Nc3 {[%clk 0:02:46.9]} 10... Qe7 {[%clk 0:02:24.3]} 11.
b4 {[%clk 0:02:46.3]} 11... c6 {[%clk 0:02:24.4]} 12. a4 {[%clk 0:02:44.1]}
12... Nf8 {[%clk 0:02:24.8]} 13. Ba3 {[%clk 0:02:43.6]} 13... Bf5 {[%clk
0:02:25.1]} 14. b5 {[%clk 0:02:35]} 14... h5 {[%clk 0:02:25.3]} 15. a5 {[%clk
0:02:34.6]} 15... a6 {[%clk 0:02:24.5]} 16. Rdb1 {[%clk 0:02:15.8]} 16... h4
{[%clk 0:02:23.5]} 17. h3 {[%clk 0:02:14.4]} 17... N8h7 {[%clk 0:02:22.4]} 18.
bxc6 {[%clk 0:02:09.2]} 18... bxc6 {[%clk 0:02:23.3]} 19. Rb6 {[%clk 0:02:09.1]}
19... Rec8 {[%clk 0:02:19]} 20. Rab1 {[%clk 0:01:59.5]} 20... Ng5 {[%clk
0:02:19.5]} 21. Bf1 {[%clk 0:01:55.9]} 21... Ra7 {[%clk 0:02:11.7]} 22. Qa4
{[%clk 0:01:47.6]} 22... Qd7 {[%clk 0:01:57.5]} 23. Qb4 {[%clk 0:01:27.5]} 23...
Bf8 {[%clk 0:01:55.4]} 24. Rb7 {[%clk 0:01:25.1]} 24... Rxb7 {[%clk 0:01:53.5]}
25. Qxb7 {[%clk 0:01:26]} 25... Rc7 {[%clk 0:01:52.8]} 26. Qxa6 {[%clk
0:01:25.7]} 26... Bxh3 {[%clk 0:01:51.4]} 27. gxh3 {[%clk 0:01:24.8]} 27...
Nxh3+ {[%clk 0:01:50.8]} 28. Bxh3 {[%clk 0:01:16.3]} 28... Qxh3 {[%clk
0:01:51.7]} 29. Nf1 {[%clk 0:01:15.2]} 29... Qg4+ {[%clk 0:01:50]} 30. Kh2
{[%clk 0:01:10.9]} 30... Qf3 {[%clk 0:01:49.5]} 31. Rb2 {[%clk 0:00:48.6]} 31...
h3 {[%clk 0:01:48.7]} 32. Nxe4 {[%clk 0:00:17.9]} 32... Qg2# {[%clk 0:01:46.9]}
0-1

[Event "Late-Titled-Tuesday-Blitz-February-13-2024"]
[Site "Chess.com"]
[Date "2024.02.13"]
[Round "10"]
[White "Alexei_Gubajdullin"]
[Black "Eloist"]
[Result "0-1"]
[WhiteElo "2629"]
[BlackElo "2475"]
[TimeControl "180+1"]
[EndTime "15:53:20 PST"]
[Termination "Eloist won by resignation"]

1. Nf3 {[%clk 0:02:58.8]} 1... Nf6 {[%clk 0:02:58.3]} 2. g3 {[%clk 0:02:58.9]}
2... b6 {[%clk 0:02:57.9]} 3. Bg2 {[%clk 0:02:59.1]} 3... Bb7 {[%clk 0:02:58]}
4. O-O {[%clk 0:02:59.4]} 4... e6 {[%clk 0:02:58.2]} 5. c4 {[%clk 0:02:59.4]}
5... Be7 {[%clk 0:02:58.3]} 6. Nc3 {[%clk 0:02:59.4]} 6... O-O {[%clk
0:02:57.9]} 7. d4 {[%clk 0:02:59.3]} 7... Ne4 {[%clk 0:02:57.2]} 8. Nxe4 {[%clk
0:02:59.1]} 8... Bxe4 {[%clk 0:02:56.6]} 9. Be3 {[%clk 0:02:58.8]} 9... d5
{[%clk 0:02:51.2]} 10. Ne5 {[%clk 0:02:57.6]} 10... Bxg2 {[%clk 0:02:48.8]} 11.
Kxg2 {[%clk 0:02:57.6]} 11... Bd6 {[%clk 0:02:43.2]} 12. cxd5 {[%clk 0:02:55.3]}
12... Bxe5 {[%clk 0:02:41.2]} 13. dxe5 {[%clk 0:02:51.8]} 13... Qxd5+ {[%clk
0:02:38.1]} 14. Qxd5 {[%clk 0:02:48.7]} 14... exd5 {[%clk 0:02:39]} 15. b4
{[%clk 0:02:49.1]} 15... Re8 {[%clk 0:02:15.6]} 16. Rac1 {[%clk 0:02:46.4]}
16... c6 {[%clk 0:02:12.5]} 17. f3 {[%clk 0:02:42.3]} 17... Rxe5 {[%clk
0:02:07.2]} 18. Kf2 {[%clk 0:02:41.9]} 18... Re6 {[%clk 0:02:02.3]} 19. b5
{[%clk 0:02:37.9]} 19... c5 {[%clk 0:01:59.6]} 20. Rfd1 {[%clk 0:02:36.1]} 20...
Rd6 {[%clk 0:01:41.4]} 21. Bf4 {[%clk 0:02:35.2]} 21... Rd7 {[%clk 0:01:33.1]}
22. Rxc5 {[%clk 0:02:22.7]} 22... bxc5 {[%clk 0:01:31.2]} 23. Rc1 {[%clk
0:02:19.5]} 23... c4 {[%clk 0:01:28.4]} 24. e4 {[%clk 0:02:19.4]} 24... a6
{[%clk 0:00:59.7]} 25. b6 {[%clk 0:02:16.7]} 25... Nc6 {[%clk 0:00:59.3]} 26.
exd5 {[%clk 0:02:16.4]} 26... Na5 {[%clk 0:00:57.5]} 27. d6 {[%clk 0:02:13.9]}
27... Rb8 {[%clk 0:00:53.3]} 28. Bd2 {[%clk 0:02:11.3]} 28... Nb7 {[%clk
0:00:49.7]} 29. Rxc4 {[%clk 0:02:08.9]} 29... Nxd6 {[%clk 0:00:49.4]} 30. Rc6
{[%clk 0:02:09]} 30... Ne4+ {[%clk 0:00:46.5]} 31. fxe4 {[%clk 0:02:00.9]} 31...
Rxd2+ {[%clk 0:00:46]} 32. Ke3 {[%clk 0:01:59.5]} 32... Rb2 {[%clk 0:00:46]} 33.
Rc7 {[%clk 0:01:42.1]} 33... R2xb6 {[%clk 0:00:45.1]} 34. Ra7 {[%clk 0:01:43]}
34... Kf8 {[%clk 0:00:44]} 35. h4 {[%clk 0:01:41.1]} 35... R8b7 {[%clk
0:00:43.9]} 36. Ra8+ {[%clk 0:01:36.8]} 36... Ke7 {[%clk 0:00:44]} 37. Rb8
{[%clk 0:01:32]} 37... Rxb8 {[%clk 0:00:43.4]} 0-1

[Event "Late-Titled-Tuesday-Blitz-February-13-2024"]
[Site "Chess.com"]
[Date "2024.02.13"]
[Round "10"]
[White "xakevicius91"]
[Black "Alblooshi_Hamad"]
[Result "1-0"]
[WhiteElo "2529"]
[BlackElo "2275"]
[TimeControl "180+1"]
[EndTime "15:53:21 PST"]
[Termination "xakevicius91 won by resignation"]

1. e4 {[%clk 0:02:58.6]} 1... c5 {[%clk 0:03:00]} 2. Nf3 {[%clk 0:02:53.5]} 2...
Nc6 {[%clk 0:03:00.4]} 3. Bc4 {[%clk 0:02:53.1]} 3... e6 {[%clk 0:02:57.5]} 4.
O-O {[%clk 0:02:52.8]} 4... Nf6 {[%clk 0:02:57.3]} 5. Re1 {[%clk 0:02:52.4]}
5... Be7 {[%clk 0:02:57.5]} 6. e5 {[%clk 0:02:38.1]} 6... Nd5 {[%clk 0:02:56.3]}
7. d4 {[%clk 0:02:36.7]} 7... Nb6 {[%clk 0:02:52]} 8. Bf1 {[%clk 0:02:34.2]}
8... cxd4 {[%clk 0:02:51.6]} 9. Nxd4 {[%clk 0:02:35.1]} 9... Nxd4 {[%clk
0:02:35.4]} 10. Qxd4 {[%clk 0:02:34.4]} 10... O-O {[%clk 0:02:34.1]} 11. Qg4
{[%clk 0:02:33.1]} 11... Re8 {[%clk 0:02:34.1]} 12. Nc3 {[%clk 0:02:31.7]} 12...
d6 {[%clk 0:02:25.1]} 13. Bb5 {[%clk 0:02:04.5]} 13... Bd7 {[%clk 0:02:22.4]}
14. exd6 {[%clk 0:02:01.4]} 14... Bxd6 {[%clk 0:02:14.3]} 15. Be3 {[%clk
0:01:54.7]} 15... Bxb5 {[%clk 0:02:05.4]} 16. Nxb5 {[%clk 0:01:55.6]} 16... Nd5
{[%clk 0:02:01]} 17. c4 {[%clk 0:01:46.9]} 17... Nxe3 {[%clk 0:01:55.3]} 18.
Rxe3 {[%clk 0:01:47.8]} 18... Bc5 {[%clk 0:01:53.6]} 19. Rd1 {[%clk 0:01:44.6]}
19... Qf6 {[%clk 0:01:41.8]} 20. Rf3 {[%clk 0:01:36.4]} 20... Qe7 {[%clk
0:01:19.9]} 21. Rfd3 {[%clk 0:01:26]} 21... a6 {[%clk 0:01:15]} 22. Rd7 {[%clk
0:01:11.4]} 22... Qf6 {[%clk 0:01:13]} 23. Nc7 {[%clk 0:01:11.7]} 23... Qxf2+
{[%clk 0:00:43.6]} 24. Kh1 {[%clk 0:01:11.1]} 24... Red8 {[%clk 0:00:41.7]} 25.
Rxd8+ {[%clk 0:00:50.6]} 1-0

[Event "Late-Titled-Tuesday-Blitz-February-13-2024"]
[Site "Chess.com"]
[Date "2024.02.13"]
[Round "10"]
[White "aghasiyevkamal"]
[Black "ATM622"]
[Result "0-1"]
[WhiteElo "2634"]
[BlackElo "2489"]
[TimeControl "180+1"]
[EndTime "15:53:28 PST"]
[Termination "ATM622 won by resignation"]

1. d4 {[%clk 0:02:53.9]} 1... Nf6 {[%clk 0:02:59.2]} 2. c4 {[%clk 0:02:47.6]}
2... e6 {[%clk 0:02:59.3]} 3. Nf3 {[%clk 0:02:47.1]} 3... d5 {[%clk 0:02:59.4]}
4. Nc3 {[%clk 0:02:43.8]} 4... Be7 {[%clk 0:02:58.4]} 5. cxd5 {[%clk 0:02:43.9]}
5... exd5 {[%clk 0:02:58.3]} 6. Bg5 {[%clk 0:02:44.1]} 6... O-O {[%clk
0:02:58.2]} 7. e3 {[%clk 0:02:44.3]} 7... h6 {[%clk 0:02:57.9]} 8. Bf4 {[%clk
0:02:34.8]} 8... c6 {[%clk 0:02:56.9]} 9. h3 {[%clk 0:02:35.3]} 9... Bf5 {[%clk
0:02:55.5]} 10. Bd3 {[%clk 0:02:26.8]} 10... Bxd3 {[%clk 0:02:49]} 11. Qxd3
{[%clk 0:02:26.5]} 11... Nbd7 {[%clk 0:02:49.5]} 12. g4 {[%clk 0:02:24.5]} 12...
Bb4 {[%clk 0:02:45.8]} 13. g5 {[%clk 0:02:17.8]} 13... hxg5 {[%clk 0:02:43.8]}
14. Bxg5 {[%clk 0:02:18.1]} 14... Re8 {[%clk 0:02:41.5]} 15. Rg1 {[%clk
0:02:17.3]} 15... Qa5 {[%clk 0:02:38.1]} 16. Bxf6 {[%clk 0:02:10.5]} 16... Nxf6
{[%clk 0:02:37.9]} 17. Kf1 {[%clk 0:02:02.3]} 17... Bxc3 {[%clk 0:02:35.6]} 18.
bxc3 {[%clk 0:02:02.2]} 18... Ne4 {[%clk 0:02:34.3]} 19. c4 {[%clk 0:01:56.7]}
19... dxc4 {[%clk 0:02:29.5]} 20. Qxc4 {[%clk 0:01:54.7]} 20... Qf5 {[%clk
0:02:30.1]} 21. Ke2 {[%clk 0:01:47.3]} 21... Qxf3+ {[%clk 0:02:29.6]} 22. Kxf3
{[%clk 0:01:43]} 22... Nd2+ {[%clk 0:02:30]} 23. Ke2 {[%clk 0:01:38.8]} 23...
Nxc4 {[%clk 0:02:29.8]} 24. a4 {[%clk 0:01:36.5]} 24... Rad8 {[%clk 0:02:26.4]}
25. Kd3 {[%clk 0:01:35.7]} 25... Ne5+ {[%clk 0:02:25.9]} 26. Kc3 {[%clk
0:01:36.1]} 26... Nd7 {[%clk 0:02:23.1]} 27. a5 {[%clk 0:01:34.1]} 27... c5
{[%clk 0:02:23]} 28. Rgd1 {[%clk 0:01:26.4]} 28... cxd4+ {[%clk 0:02:22.8]} 29.
Rxd4 {[%clk 0:01:26.5]} 29... Rc8+ {[%clk 0:02:23]} 30. Kb2 {[%clk 0:01:23.1]}
30... Nc5 {[%clk 0:02:20.5]} 31. Rc1 {[%clk 0:01:15.5]} 31... Rc6 {[%clk
0:02:16.2]} 32. Rcc4 {[%clk 0:01:12.5]} 32... Rec8 {[%clk 0:02:08.9]} 33. Rb4
{[%clk 0:01:07.3]} 33... b6 {[%clk 0:02:03.4]} 34. axb6 {[%clk 0:00:57.1]} 34...
Rxb6 {[%clk 0:02:02.9]} 35. Rxb6 {[%clk 0:00:56.1]} 35... axb6 {[%clk
0:02:03.8]} 36. Ka3 {[%clk 0:00:56.5]} 36... Ra8+ {[%clk 0:01:57.8]} 37. Kb4
{[%clk 0:00:54.7]} 37... Ra5 {[%clk 0:01:49.8]} 38. Rd6 {[%clk 0:00:53.6]} 38...
Na6+ {[%clk 0:01:48.9]} 39. Kc4 {[%clk 0:00:52.9]} 39... Rc5+ {[%clk 0:01:41.5]}
40. Kd4 {[%clk 0:00:51.2]} 40... Rb5 {[%clk 0:01:41.7]} 41. Kc4 {[%clk
0:00:49.8]} 41... Rb4+ {[%clk 0:01:40.8]} 42. Kc3 {[%clk 0:00:50.1]} 42... Rb1
{[%clk 0:01:40.6]} 43. Kc2 {[%clk 0:00:47.5]} 43... Rb5 {[%clk 0:01:40.4]} 44.
Kc3 {[%clk 0:00:47]} 44... Kf8 {[%clk 0:01:40.6]} 45. e4 {[%clk 0:00:43.5]}
45... Ke7 {[%clk 0:01:39.7]} 46. Rc6 {[%clk 0:00:41.5]} 46... Rc5+ {[%clk
0:01:39.9]} 47. Rxc5 {[%clk 0:00:40.7]} 47... Nxc5 {[%clk 0:01:40.6]} 48. f3
{[%clk 0:00:40.8]} 48... Ke6 {[%clk 0:01:40.8]} 49. Kd4 {[%clk 0:00:40.9]} 49...
Nb3+ {[%clk 0:01:40.2]} 0-1

[Event "Late-Titled-Tuesday-Blitz-February-13-2024"]
[Site "Chess.com"]
[Date "2024.02.13"]
[Round "10"]
[White "cande_francisco"]
[Black "stollenmonster"]
[Result "0-1"]
[WhiteElo "2510"]
[BlackElo "2846"]
[TimeControl "180+1"]
[EndTime "15:53:37 PST"]
[Termination "stollenmonster won by resignation"]

1. e4 {[%clk 0:03:00.9]} 1... c5 {[%clk 0:03:00]} 2. Nf3 {[%clk 0:03:01.1]} 2...
Nf6 {[%clk 0:02:59.9]} 3. e5 {[%clk 0:02:59.9]} 3... Nd5 {[%clk 0:03:00.6]} 4.
Nc3 {[%clk 0:03:00.2]} 4... e6 {[%clk 0:03:01.1]} 5. Nxd5 {[%clk 0:02:58.6]}
5... exd5 {[%clk 0:03:02]} 6. d4 {[%clk 0:02:58.5]} 6... Nc6 {[%clk 0:03:02.8]}
7. dxc5 {[%clk 0:02:54]} 7... Bxc5 {[%clk 0:03:03.7]} 8. Bd3 {[%clk 0:02:49.1]}
8... d6 {[%clk 0:03:03.7]} 9. exd6 {[%clk 0:02:47.6]} 9... O-O {[%clk
0:03:04.1]} 10. O-O {[%clk 0:02:47.2]} 10... Qxd6 {[%clk 0:03:04.1]} 11. a3
{[%clk 0:02:42.2]} 11... h6 {[%clk 0:03:03.1]} 12. b4 {[%clk 0:02:41.2]} 12...
Bb6 {[%clk 0:03:03.3]} 13. Bb2 {[%clk 0:02:24.7]} 13... Bg4 {[%clk 0:02:54.7]}
14. Bb5 {[%clk 0:01:50.9]} 14... Bc7 {[%clk 0:02:48.2]} 15. g3 {[%clk
0:01:35.4]} 15... Qg6 {[%clk 0:02:32.8]} 16. Nh4 {[%clk 0:00:54]} 16... Qg5
{[%clk 0:02:17.7]} 17. Qd3 {[%clk 0:00:43.2]} 17... Rfe8 {[%clk 0:02:06.3]} 18.
Rae1 {[%clk 0:00:39.5]} 18... Qh5 {[%clk 0:01:56]} 19. Bxc6 {[%clk 0:00:36.2]}
19... bxc6 {[%clk 0:01:55.2]} 20. Qd4 {[%clk 0:00:35.1]} 20... f6 {[%clk
0:01:34.7]} 21. Qc5 {[%clk 0:00:16.4]} 21... Be2 {[%clk 0:01:21]} 22. Qxc6
{[%clk 0:00:15]} 22... Bxf1 {[%clk 0:01:13.3]} 23. Rxf1 {[%clk 0:00:14.9]} 23...
Bb6 {[%clk 0:01:13.5]} 24. Ng2 {[%clk 0:00:12.1]} 24... Qf3 {[%clk 0:01:08.6]}
25. Nf4 {[%clk 0:00:11.5]} 25... Bxf2+ {[%clk 0:01:02.8]} 0-1